fUSD/lending_fUSD_20241104
["ID","MTS","AMOUNT","RATE_DAILY","PERIOD"]
[341250817,1730725916516,-809.09,0.00039452,2]
[341250818,1730725916525,-311.64138912,0.00039452,2]
[341250819,1730725916535,-620.71,0.00039452,2]
[341250820,1730725916544,-500.0,0.00039452,2]
[341250821,1730725916554,-1809.12,0.00039452,2]
[341250822,1730725916563,-500.0,0.00039452,2]
[341250823,1730725916574,-232.3334753,0.00039452,2]
[341250824,1730725916584,-500.0,0.00039452,2]
[341250825,1730725916593,-601.59,0.00039452,2]
[341250826,1730725916603,-500.0,0.00039452,2]
[341250827,1730725916617,-500.0,0.00039452,2]
[341250828,1730725916627,-1995.05,0.00039452,2]
[341250829,1730725916637,-1008.77,0.00039452,2]
[341250830,1730725916646,-500.0,0.00039452,2]
[341250831,1730725916656,-500.0,0.00039452,2]
[341250832,1730725916666,-623.02,0.00039452,2]
[341250833,1730725916676,-500.0,0.00039452,2]
[341250834,1730725916686,-500.0,0.00039452,2]
[341250835,1730725916696,-500.0,0.00039452,2]
[341250836,1730725916705,-500.0,0.00039452,2]
[341250837,1730725916715,-500.0,0.00039452,2]
[341250838,1730725916725,-157.18,0.00039452,2]
[341250839,1730725916735,-500.0,0.00039452,2]
[341250840,1730725916744,-1165.65,0.00039452,2]
[341250841,1730725916753,-157.90900683,0.00039452,2]
[341250842,1730725916767,-500.0,0.00039452,2]
[341250843,1730725916776,-500.0,0.00039452,2]
[341250844,1730725916786,-512.83,0.00039452,2]
[341250845,1730725916795,-1331.81,0.00039452,2]
[341250846,1730725916807,-972.11,0.00039452,2]
[341250847,1730725916817,-500.0,0.00039452,2]
[341250848,1730725916826,-528.80372313,0.00039452,2]
[341250849,1730725916835,-500.0,0.00039452,2]
[341250850,1730725916845,-500.0,0.00039452,2]
[341250851,1730725916858,-1002.08,0.00039452,2]
[341250852,1730725916868,-500.0,0.00039452,2]
[341250853,1730725916877,-500.0,0.00039452,2]
[341250854,1730725916886,-1341.72,0.00039452,2]
[341250855,1730725916895,-1042.98,0.00039452,2]
[341250856,1730725916905,-500.0,0.00039452,2]
[341250857,1730725916914,-1342.69,0.00039452,2]
[341250858,1730725916923,-7421.53,0.00039452,2]
[341250859,1730725916933,-3370.41,0.00039452,2]
[341250860,1730725916942,-624.26,0.00039452,2]
[341250861,1730725916952,-707.91,0.00039452,2]
[341250862,1730725916961,-10707.45,0.00039452,2]
[341250863,1730725916971,-500.0,0.00039452,2]
[341250864,1730725916981,-500.0,0.00039452,2]
[341250865,1730725916990,-500.0,0.00039452,2]
[341250866,1730725916999,-831.55,0.00039452,2]
[341250867,1730725917009,-500.0,0.00039452,2]
[341250868,1730725917018,-1217.0,0.00039452,2]
[341250869,1730725917028,-2695.19,0.00039452,2]
[341250870,1730725917037,-500.0,0.00039452,2]
[341250871,1730725917047,-500.0,0.00039452,2]
[341250872,1730725917056,-575.84,0.00039452,2]
[341250873,1730725917065,-646.31,0.00039452,2]
[341250874,1730725917075,-3535.86,0.00039452,2]
[341250875,1730725917084,-540.81,0.00039452,2]
[341250876,1730725917094,-830.33,0.00039452,2]
[341250877,1730725917103,-266.82167605,0.00039452,2]
[341250878,1730725917114,-845.84,0.00039452,2]
[341250879,1730725917124,-1675.43164455,0.00039452,2]
[341250880,1730725917133,-918.13,0.00039452,2]
[341250881,1730725917142,-1204.33,0.00039452,2]
[341250882,1730725917151,-500.0,0.00039452,2]
[341250883,1730725917161,-749.48,0.00039452,2]
[341250884,1730725917170,-1387.35,0.00039452,2]
[341250885,1730725917180,-1564.21,0.00039452,2]
[341250886,1730725917189,-806.53,0.00039452,2]
[341250887,1730725917199,-5168.13,0.00039452,2]
[341250888,1730725917208,-10163.36,0.00039452,2]
[341250889,1730725917218,-2866.16,0.00039452,2]
[341250890,1730725917228,-500.0,0.00039452,2]
[341250891,1730725917237,-691.73,0.00039452,2]
[341250892,1730725917247,-1019.92,0.00039452,2]
[341250893,1730725917257,-5461.87,0.00039452,2]
[341250894,1730725917267,-2771.6,0.00039452,2]
[341250895,1730725917277,-500.0,0.00039452,2]
[341250896,1730725917286,-500.0,0.00039452,2]
[341250897,1730725917296,-10956.67,0.00039452,2]
[341250898,1730725917306,-1965.9,0.00039452,2]
[341250899,1730725917316,-1761.84,0.00039452,2]
[341250900,1730725917326,-1595.14,0.00039452,2]
[341250901,1730725917336,-467.03148123,0.00039452,2]
[341250902,1730725917346,-568.68,0.00039452,2]
[341250903,1730725917358,-500.0,0.00039452,2]
[341250904,1730725917367,-500.0,0.00039452,2]
[341250905,1730725917376,-10530.0,0.00039452,2]
[341250906,1730725917386,-1163.57,0.00039452,2]
[341250907,1730725917395,-1268.02,0.00039452,2]
[341250908,1730725917404,-321.9392051,0.00039452,2]
[341250909,1730725917414,-529.02,0.00039452,2]
[341250910,1730725917423,-1038.33,0.00039452,2]
[341250911,1730725917434,-2034.7,0.00039452,2]
[341250912,1730725917444,-755.3,0.00039452,2]
[341250913,1730725917454,-1475.39,0.00039452,2]
[341250914,1730725917463,-901.25,0.00039452,2]
[341250915,1730725917473,-4571.88,0.00039452,2]
[341250916,1730725917482,-5855.7,0.00039452,2]
[341250917,1730725917492,-1827.95,0.00039452,2]
[341250918,1730725917502,-780.78,0.00039452,2]
[341250919,1730725917511,-541.5,0.00039452,2]
[341250920,1730725917521,-500.0,0.00039452,2]
[341250921,1730725917530,-1576.72,0.00039452,2]
[341250922,1730725917539,-166.75156356,0.00039452,2]
[341250923,1730725917549,-976.95,0.00039452,2]
[341250924,1730725917558,-348.31633776,0.00039452,2]
[341250925,1730725917568,-3971.77,0.00039452,2]
[341250926,1730725917577,-500.0,0.00039452,2]
[341250927,1730725917587,-275.16783611,0.00039452,2]
[341250928,1730725917596,-500.0,0.00039452,2]
[341250929,1730725917607,-207.30812,0.00039488,7]
[341250930,1730725917617,-1005.5,0.000395,30]
[341250931,1730725917626,-502.9612243,0.00039547,5]
[341250932,1730725917636,-1005.34557489,0.00039547,5]
[341250933,1730725917646,-155.61,0.0003957,120]
[341250934,1730725917655,-800.0,0.00039577,60]
[341250935,1730725917666,-2000.0,0.00039577,60]
[341250936,1730725917675,-2709.96,0.000396,14]
[341250937,1730725917685,-1005.84257795,0.00039685,5]
[341250938,1730725917694,-207.30812,0.00039688,7]
[341250939,1730725917703,-500.0,0.00039726,2]
[341250940,1730725917712,-500.0,0.00039726,2]
[341250941,1730725917722,-580.29,0.00039726,2]
[341250942,1730725917731,-1598.15,0.00039726,2]
[341250943,1730725917741,-570.89,0.00039726,2]
[341250944,1730725917750,-956.54,0.00039726,7]
[341250945,1730725917762,-1552.92,0.00039726,2]
[341250946,1730725917772,-767.02,0.00039726,2]
[341250947,1730725917781,-530.64,0.00039726,2]
[341250948,1730725917791,-594.18413832,0.00039726,2]
[341250949,1730725917801,-1163.84,0.00039726,2]
[341250950,1730725917810,-498.21,0.00039726,2]
[341250951,1730725917820,-500.0,0.00039726,2]
[341250952,1730725917829,-614.39,0.00039726,2]
[341250953,1730725917841,-641.85,0.00039726,2]
[341250954,1730725917850,-750.25,0.00039726,2]
[341250955,1730725917862,-1037.16,0.00039726,2]
[341250956,1730725917872,-500.0,0.00039726,2]
[341250957,1730725917881,-538.4,0.00039726,2]
[341250958,1730725917891,-500.0,0.00039726,2]
[341250959,1730725917900,-927.41,0.00039726,2]
[341250960,1730725917909,-607.03,0.00039726,2]
[341250961,1730725917918,-500.0,0.00039726,2]
[341250962,1730725917928,-527.13,0.00039726,2]
[341250963,1730725917938,-500.0,0.00039726,2]
[341250964,1730725917947,-500.0,0.00039726,2]
[341250965,1730725917956,-250.0,0.00039726,2]
[341250966,1730725917966,-500.0,0.00039726,2]
[341250967,1730725917976,-1674.02,0.00039726,120]
[341250968,1730725917986,-500.0,0.00039726,2]
[341250969,1730725917996,-3101.46,0.00039726,2]
[341250970,1730725918006,-809.09,0.00039726,2]
[341250971,1730725918015,-620.71,0.00039726,2]
[341250972,1730725918024,-500.0,0.00039726,2]
[341250973,1730725918034,-1809.12,0.00039726,2]
[341250974,1730725918043,-500.0,0.00039726,2]
[341250975,1730725918053,-500.0,0.00039726,2]
[341250976,1730725918063,-601.59,0.00039726,2]
[341250977,1730725918073,-500.0,0.00039726,2]
[341250978,1730725918083,-500.0,0.00039726,2]
[341250979,1730725918093,-1995.05,0.00039726,2]
[341250980,1730725918103,-1008.77,0.00039726,2]
[341250981,1730725918115,-500.0,0.00039726,2]
[341250982,1730725918125,-500.0,0.00039726,2]
[341250983,1730725918134,-623.02,0.00039726,2]
[341250984,1730725918145,-500.0,0.00039726,2]
[341250985,1730725918154,-500.0,0.00039726,2]
[341250986,1730725918164,-500.0,0.00039726,2]
[341250987,1730725918174,-500.0,0.00039726,2]
[341250988,1730725918183,-500.0,0.00039726,2]
[341250989,1730725918193,-157.18,0.00039726,2]
[341250990,1730725918203,-500.0,0.00039726,2]
[341250991,1730725918213,-1165.65,0.00039726,2]
[341250992,1730725918223,-500.0,0.00039726,2]
[341250993,1730725918232,-500.0,0.00039726,2]
[341250994,1730725918242,-512.83,0.00039726,2]
[341250995,1730725918252,-1331.81,0.00039726,2]
[341250996,1730725918261,-972.11,0.00039726,2]
[341250997,1730725918271,-601.29053142,0.00039726,2]
[341250998,1730725918281,-500.0,0.00039726,2]
[341250999,1730725918291,-500.0,0.00039726,2]
[341251000,1730725918300,-1002.08,0.00039726,2]
[341251001,1730725918309,-418.65555953,0.00039726,2]
[341251002,1730725918319,-500.0,0.00039726,2]
[341251003,1730725918328,-1341.72,0.00039726,2]
[341251004,1730725918338,-1042.98,0.00039726,2]
[341251005,1730725918348,-500.0,0.00039726,2]
[341251006,1730725918359,-1342.69,0.00039726,2]
[341251007,1730725918369,-7421.53,0.00039726,2]
[341251008,1730725918378,-3370.41,0.00039726,2]
[341251009,1730725918389,-624.26,0.00039726,2]
[341251010,1730725918398,-707.91,0.00039726,2]
[341251011,1730725918408,-10707.45,0.00039726,2]
[341251012,1730725918418,-500.0,0.00039726,2]
[341251013,1730725918429,-520.62977804,0.00039726,2]
[341251014,1730725918439,-500.0,0.00039726,2]
[341251015,1730725918449,-831.55,0.00039726,2]
[341251016,1730725918458,-500.0,0.00039726,2]
[341251017,1730725918469,-1217.0,0.00039726,2]
[341251018,1730725918479,-2695.19,0.00039726,2]
[341251019,1730725918488,-500.0,0.00039726,2]
[341251020,1730725918498,-500.0,0.00039726,2]
[341251021,1730725918510,-575.84,0.00039726,2]
[341251022,1730725918522,-646.31,0.00039726,2]
[341251023,1730725918531,-3535.86,0.00039726,2]
[341251024,1730725918540,-540.81,0.00039726,2]
[341251025,1730725918550,-830.33,0.00039726,2]
[341251026,1730725918559,-845.84,0.00039726,2]
[341251027,1730725918570,-4515.86,0.00039726,120]
[341251028,1730725918579,-918.13,0.00039726,2]
[341251029,1730725918589,-1204.33,0.00039726,2]
[341251030,1730725918598,-500.0,0.00039726,2]
[341251031,1730725918610,-749.48,0.00039726,2]
[341251032,1730725918619,-1387.35,0.00039726,2]
[341251033,1730725918629,-1564.21,0.00039726,2]
[341251034,1730725918809,-806.53,0.00039726,2]
[341251035,1730725918819,-5168.13,0.00039726,2]
[341251036,1730725918830,-10163.36,0.00039726,2]
[341251037,1730725918840,-2866.16,0.00039726,2]
[341251038,1730725918850,-500.0,0.00039726,2]
[341251039,1730725918863,-691.73,0.00039726,2]
[341251040,1730725918878,-1019.92,0.00039726,2]
[341251041,1730725918887,-5461.87,0.00039726,2]
[341251042,1730725918896,-2771.6,0.00039726,2]
[341251043,1730725918906,-500.0,0.00039726,2]
[341251044,1730725918915,-500.0,0.00039726,2]
[341251045,1730725918925,-10956.67,0.00039726,2]
[341251046,1730725918934,-1965.9,0.00039726,2]
[341251047,1730725918944,-1761.84,0.00039726,2]
[341251048,1730725918954,-1595.14,0.00039726,2]
[341251049,1730725918963,-568.68,0.00039726,2]
[341251050,1730725918973,-500.0,0.00039726,2]
[341251051,1730725918983,-500.0,0.00039726,2]
[341251052,1730725918992,-10530.0,0.00039726,2]
[341251053,1730725919002,-1163.57,0.00039726,2]
[341251054,1730725919011,-1268.02,0.00039726,2]
[341251055,1730725919020,-529.02,0.00039726,2]
[341251056,1730725919029,-1038.33,0.00039726,2]
[341251057,1730725919039,-2034.7,0.00039726,2]
[341251058,1730725919049,-755.3,0.00039726,2]
[341251059,1730725919059,-1475.39,0.00039726,2]
[341251060,1730725919068,-901.25,0.00039726,2]
[341251061,1730725919078,-4571.88,0.00039726,2]
[341251062,1730725919088,-5855.7,0.00039726,2]
[341251063,1730725919097,-1827.95,0.00039726,2]
[341251064,1730725919107,-780.78,0.00039726,2]
[341251065,1730725919116,-541.5,0.00039726,2]
[341251066,1730725919126,-500.0,0.00039726,2]
[341251067,1730725919135,-1576.72,0.00039726,2]
[341251068,1730725919145,-976.95,0.00039726,2]
[341251069,1730725919154,-3971.77,0.00039726,2]
[341251070,1730725919163,-500.0,0.00039726,2]
[341251071,1730725919172,-500.0,0.00039726,2]
[341251072,1730725919182,-164.36769277,0.00039726,15]
[341251073,1730725919192,-150.0,0.00039812,7]
[341251074,1730725919201,-150.0,0.00039812,7]
[341251075,1730725919211,-150.0,0.00039812,7]
[341251076,1730725919221,-155.30829636,0.00039812,7]
[341251077,1730725919231,-150.0,0.00039812,7]
[341251078,1730725919241,-166.83172825,0.00039812,7]
[341251079,1730725919250,-150.0,0.00039812,7]
[341251080,1730725919260,-218.0,0.00039844,2]
[341251081,1730725919269,-1006.53,0.00039864,2]
[341251082,1730725919279,-152.41,0.000399,31]
[341251083,1730725919288,-152.41,0.000399,31]
[341251084,1730725919298,-152.41,0.000399,31]
[341251085,1730725919308,-152.41,0.000399,31]
[341251086,1730725919317,-152.41,0.000399,31]
[341251087,1730725919326,-152.41,0.000399,31]
[341251088,1730725919336,-152.41,0.000399,31]
[341251089,1730725919346,-152.41,0.000399,31]
[341251090,1730725919359,-152.41,0.000399,31]
[341251091,1730725919369,-152.41,0.000399,31]
[341251092,1730725919379,-152.41,0.000399,31]
[341251093,1730725919389,-152.41,0.000399,31]
[341251094,1730725919398,-152.41,0.000399,31]
[341251095,1730725919408,-152.41,0.000399,31]
[341251096,1730725919418,-1007.32,0.000399,41]
[341251097,1730725919427,-243.4877554,0.000399,2]
[341251098,1730725919437,-150.0,0.0003995,7]
[341251099,1730725919446,-500.0,0.0004,2]
[341251100,1730725919456,-13452.57,0.0004,30]
[341251101,1730725919466,-2999.99,0.0004,2]
[341251102,1730725919477,-3000.0,0.0004,2]
[341251103,1730725919486,-3000.0,0.0004,2]
[341251104,1730725919500,-3000.0,0.0004,2]
[341251105,1730725919510,-3000.0,0.0004,2]
[341251106,1730725919519,-1208.51,0.0004,2]
[341251107,1730725919529,-85507.29170422,0.0004,2]
[341251108,1730725919539,-5576.57392167,0.0004,2]
[341251109,1730725919549,-10000.0,0.0004,7]
[341251110,1730725919558,-267468.54899366,0.0004,4]
[341251111,1730725919568,-373.76377631,0.0004,2]
[341251112,1730725919577,-5934.63550587,0.0004,7]
[341251113,1730725919587,-8927.55363277,0.0004,30]
[341251114,1730725919596,-50411.0592355,0.0004,4]
[341251115,1730725919606,-353.54574454,0.0004,30]
[341251116,1730725919619,-163.37081857,0.0004,30]
[341251117,1730725919628,-162.0,0.0004,120]
[341251118,1730725919638,-150.0,0.0004,5]
[341251119,1730725919648,-1452.03029557,0.0004,3]
[341251120,1730725919657,-581.26,0.0004,120]
[341251121,1730725919666,-501.0,0.0004,120]
[341251122,1730725919676,-500.0,0.0004,2]
[341251123,1730725919685,-580.29,0.0004,2]
[341251124,1730725919695,-1598.15,0.0004,2]
[341251125,1730725919704,-570.89,0.0004,2]
[341251126,1730725919714,-956.54,0.0004,7]
[341251127,1730725919723,-1552.92,0.0004,2]
[341251128,1730725919733,-767.02,0.0004,2]
[341251129,1730725919742,-159.8388529,0.0004,2]
[341251130,1730725919751,-530.64,0.0004,2]
[341251131,1730725919763,-1163.84,0.0004,2]
[341251132,1730725919773,-500.0,0.0004,2]
[341251133,1730725919783,-614.39,0.0004,2]
[341251134,1730725919793,-641.85,0.0004,2]
[341251135,1730725919803,-750.25,0.0004,2]
[341251136,1730725919813,-1037.16,0.0004,2]
[341251137,1730725919823,-500.0,0.0004,2]
[341251138,1730725919833,-538.4,0.0004,2]
[341251139,1730725919843,-500.0,0.0004,2]
[341251140,1730725919854,-927.41,0.0004,2]
[341251141,1730725919865,-607.03,0.0004,2]
[341251142,1730725919874,-500.0,0.0004,2]
[341251143,1730725919884,-527.13,0.0004,2]
[341251144,1730725919893,-357.79233375,0.0004,2]
[341251145,1730725919903,-500.0,0.0004,2]
[341251146,1730725919912,-250.0,0.0004,2]
[341251147,1730725919922,-293.73366808,0.0004,2]
[341251148,1730725919932,-1674.02,0.0004,120]
[341251149,1730725919941,-500.0,0.0004,2]
[341251150,1730725919951,-3101.46,0.0004,2]
[341251151,1730725919961,-809.09,0.0004,2]
[341251152,1730725919970,-620.71,0.0004,2]
[341251153,1730725919979,-500.0,0.0004,2]
[341251154,1730725919988,-1809.12,0.0004,2]
[341251155,1730725919998,-500.0,0.0004,2]
[341251156,1730725920008,-500.0,0.0004,2]
[341251157,1730725920017,-601.59,0.0004,2]
[341251158,1730725920027,-415.10561149,0.0004,2]
[341251159,1730725920037,-500.0,0.0004,2]
[341251160,1730725920046,-1995.05,0.0004,2]
[341251161,1730725920056,-1008.77,0.0004,2]
[341251162,1730725920065,-500.0,0.0004,2]
[341251163,1730725920075,-500.0,0.0004,2]
[341251164,1730725920085,-623.02,0.0004,2]
[341251165,1730725920095,-500.0,0.0004,2]
[341251166,1730725920105,-1657.03903305,0.0004,120]
[341251167,1730725920116,-500.0,0.0004,2]
[341251168,1730725920126,-500.0,0.0004,2]
[341251169,1730725920136,-500.0,0.0004,2]
[341251170,1730725920145,-500.0,0.0004,2]
[341251171,1730725920154,-157.18,0.0004,2]
[341251172,1730725920164,-500.0,0.0004,2]
[341251173,1730725920174,-1165.65,0.0004,2]
[341251174,1730725920184,-616.49610192,0.0004,2]
[341251175,1730725920195,-500.0,0.0004,2]
[341251176,1730725920205,-512.83,0.0004,2]
[341251177,1730725920215,-1331.81,0.0004,2]
[341251178,1730725920225,-972.11,0.0004,2]
[341251179,1730725920235,-500.0,0.0004,2]
[341251180,1730725920244,-500.0,0.0004,2]
[341251181,1730725920254,-1002.08,0.0004,2]
[341251182,1730725920264,-509.22784084,0.0004,2]
[341251183,1730725920273,-1341.72,0.0004,2]
[341251184,1730725920283,-1042.98,0.0004,2]
[341251185,1730725920293,-500.0,0.0004,2]
[341251186,1730725920303,-1342.69,0.0004,2]
[341251187,1730725920312,-7421.53,0.0004,2]
[341251188,1730725920322,-3370.41,0.0004,2]
[341251189,1730725920332,-624.26,0.0004,2]
[341251190,1730725920342,-707.91,0.0004,2]
[341251191,1730725920352,-10707.45,0.0004,2]
[341251192,1730725920364,-500.0,0.0004,2]
[341251193,1730725920373,-500.0,0.0004,2]
[341251194,1730725920382,-831.55,0.0004,2]
[341251195,1730725920392,-595.06970383,0.0004,2]
[341251196,1730725920402,-500.0,0.0004,2]
[341251197,1730725920411,-1217.0,0.0004,2]
[341251198,1730725920420,-2695.19,0.0004,2]
[341251199,1730725920430,-500.0,0.0004,2]
[341251200,1730725920439,-500.0,0.0004,2]
[341251201,1730725920450,-575.84,0.0004,2]
[341251202,1730725920460,-646.31,0.0004,2]
[341251203,1730725920470,-3535.86,0.0004,2]
[341251204,1730725920480,-540.81,0.0004,2]
[341251205,1730725920489,-830.33,0.0004,2]
[341251206,1730725920498,-845.84,0.0004,2]
[341251207,1730725920508,-918.13,0.0004,2]
[341251208,1730725920518,-1204.33,0.0004,2]
[341251209,1730725920528,-500.0,0.0004,2]
[341251210,1730725920538,-749.48,0.0004,2]
[341251211,1730725920549,-1387.35,0.0004,2]
[341251212,1730725920560,-1564.21,0.0004,2]
[341251213,1730725920570,-806.53,0.0004,2]
[341251214,1730725920580,-5168.13,0.0004,2]
[341251215,1730725920591,-10163.36,0.0004,2]
[341251216,1730725920600,-2866.16,0.0004,2]
[341251217,1730725920611,-500.0,0.0004,2]
[341251218,1730725920621,-691.73,0.0004,2]
[341251219,1730725920631,-1019.92,0.0004,2]
[341251220,1730725920640,-5461.87,0.0004,2]
[341251221,1730725920650,-2771.6,0.0004,2]
[341251222,1730725920660,-500.0,0.0004,2]
[341251223,1730725920670,-500.0,0.0004,2]
[341251224,1730725920680,-10956.67,0.0004,2]
[341251225,1730725920689,-1965.9,0.0004,2]
[341251226,1730725920699,-1761.84,0.0004,2]
[341251227,1730725920709,-1595.14,0.0004,2]
[341251228,1730725920717,-568.68,0.0004,2]
[341251229,1730725920728,-500.0,0.0004,2]
[341251230,1730725920737,-500.0,0.0004,2]
[341251231,1730725920747,-10530.0,0.0004,2]
[341251232,1730725920758,-1163.57,0.0004,2]
[341251233,1730725920771,-1268.02,0.0004,2]
[341251234,1730725920781,-529.02,0.0004,2]
[341251235,1730725920790,-1038.33,0.0004,2]
[341251236,1730725920802,-2034.7,0.0004,2]
[341251237,1730725920811,-755.3,0.0004,2]
[341251238,1730725920821,-1475.39,0.0004,2]
[341251239,1730725920830,-901.25,0.0004,2]
[341251240,1730725920841,-4571.88,0.0004,2]
[341251241,1730725920851,-5855.7,0.0004,2]
[341251242,1730725920861,-1827.95,0.0004,2]
[341251243,1730725920870,-780.78,0.0004,2]
[341251244,1730725920880,-541.5,0.0004,2]
[341251245,1730725920890,-500.0,0.0004,2]
[341251246,1730725920901,-152.93,0.0004,2]
[341251247,1730725920911,-152.93,0.0004,2]
[341251248,1730725920920,-1576.72,0.0004,2]
[341251249,1730725920930,-976.95,0.0004,2]
[341251250,1730725920939,-3971.77,0.0004,2]
[341251251,1730725920949,-500.0,0.0004,2]
[341251252,1730725920959,-500.0,0.0004,2]
[341251253,1730725920968,-150.0,0.00040072,7]
[341251254,1730725920978,-150.0,0.00040074,30]
[341251255,1730725920987,-150.0,0.00040088,7]
[341251256,1730725920996,-207.30812,0.00040088,7]
[341251257,1730725921005,-800.0,0.00040125,60]
[341251258,1730725921015,-500.0,0.00040125,60]
[341251259,1730725921025,-150.0,0.0004018,7]
[341251260,1730725921034,-2709.96,0.000402,14]
[341251261,1730725921044,-150.0,0.00040226,7]
[341251262,1730725921054,-500.0,0.00040273,2]
[341251263,1730725921063,-580.29,0.00040273,2]
[341251264,1730725921073,-1598.15,0.00040273,2]
[341251265,1730725921082,-570.89,0.00040273,2]
[341251266,1730725921092,-956.54,0.00040273,7]
[341251267,1730725921102,-1552.92,0.00040273,2]
[341251268,1730725921113,-767.02,0.00040273,2]
[341251269,1730725921122,-530.64,0.00040273,2]
[341251270,1730725921132,-1163.84,0.00040273,2]
[341251271,1730725921144,-500.0,0.00040273,2]
[341251272,1730725921156,-614.39,0.00040273,2]
[341251273,1730725921166,-641.85,0.00040273,2]
[341251274,1730725921180,-750.25,0.00040273,2]
[341251275,1730725921190,-1037.16,0.00040273,2]
[341251276,1730725921199,-500.0,0.00040273,2]
[341251277,1730725921212,-538.4,0.00040273,2]
[341251278,1730725921221,-500.0,0.00040273,2]
[341251279,1730725921231,-927.41,0.00040273,2]
[341251280,1730725921240,-607.03,0.00040273,2]
[341251281,1730725921250,-500.0,0.00040273,2]
[341251282,1730725921259,-527.13,0.00040273,2]
[341251283,1730725921268,-500.0,0.00040273,2]
[341251284,1730725921278,-250.0,0.00040273,2]
[341251285,1730725921288,-1674.02,0.00040273,120]
[341251286,1730725921297,-500.0,0.00040273,2]
[341251287,1730725921307,-3101.46,0.00040273,2]
[341251288,1730725921316,-809.09,0.00040273,2]
[341251289,1730725921326,-620.71,0.00040273,2]
[341251290,1730725921335,-490.35519355,0.00040273,2]
[341251291,1730725921344,-1809.12,0.00040273,2]
[341251292,1730725921354,-387.16243179,0.00040273,2]
[341251293,1730725921366,-273.79263317,0.00040273,2]
[341251294,1730725921376,-601.59,0.00040273,2]
[341251295,1730725921385,-500.0,0.00040273,2]
[341251296,1730725921395,-1995.05,0.00040273,2]
[341251297,1730725921404,-1008.77,0.00040273,2]
[341251298,1730725921414,-500.0,0.00040273,2]
[341251299,1730725921423,-500.0,0.00040273,2]
[341251300,1730725921432,-623.02,0.00040273,2]
[341251301,1730725921442,-500.0,0.00040273,2]
[341251302,1730725921452,-500.0,0.00040273,2]
[341251303,1730725921461,-500.0,0.00040273,2]
[341251304,1730725921471,-500.0,0.00040273,2]
[341251305,1730725921481,-500.0,0.00040273,2]
[341251306,1730725921491,-157.18,0.00040273,2]
[341251307,1730725921501,-331.90281893,0.00040273,2]
[341251308,1730725921510,-1165.65,0.00040273,2]
[341251309,1730725921519,-500.0,0.00040273,2]
[341251310,1730725921529,-512.83,0.00040273,2]
[341251311,1730725921539,-1331.81,0.00040273,2]
[341251312,1730725921550,-972.11,0.00040273,2]
[341251313,1730725921559,-500.0,0.00040273,2]
[341251314,1730725921569,-500.0,0.00040273,2]
[341251315,1730725921578,-1002.08,0.00040273,2]
[341251316,1730725921588,-1341.72,0.00040273,2]